[Event "WJCC U20 Open 2019"]
[Site "New Delhi"]
[Date "2019.10.21"]
[Round "7.3"]
[White "Khanin, Semen"]
[Black "Praggnanandhaa R"]
[Result "1/2-1/2"]
[ECO "B31"]
[WhiteElo "2507"]
[BlackElo "2567"]
[Annotator "ChessBase"]
[PlyCount "81"]
[EventDate "2019.10.15"]
[EventType "swiss"]
[EventCountry "IND"]
[SourceTitle "playchess.com"]
[Source "ChessBase"]
[SourceQuality "1"]
[TimeControl "40/5400+30:1800+30"]

1. e4 {[%emt 0:00:00]} c5 {[%emt 0:00:09]} 2. Nf3 {[%emt 0:00:00]} Nc6 {[%emt 0:00:05]} 3. Bb5 {[%emt 0:00:00]} g6 {[%emt 0:00:04]} 4. O-O {[%emt 0:00:00]} Bg7 {[%emt 0:00:03]} 5. c3 {[%emt 0:00:00]} Nf6 {[%emt 0:01:25]} 6. Re1 {[%emt 0:00:00]} O-O {[%emt 0:02:07]} 7. d4 {[%emt 0:00:00]} d5 {[%emt 0:04:13]} 8. e5 {[%emt 0:00:04]} Ne4 {[%emt 0:06:44]} 9. Bxc6 {[%emt 0:00:23]} bxc6 {[%emt 0:00:11]} 10. Be3 {[%emt 0:00:09]} cxd4 {[%emt 0:21:08]} 11. Nxd4 {[%emt 0:06:36]} Qc7 {[%emt 0:07:05]} 12. f3 {[%emt 0:02:54]} Nc5 {[%emt 0:02:29]} 13. b4 {[%emt 0:04:02]} Nd7 {[%emt 0:08:12]} 14. f4 {[%emt 0:01:40]} a5 {[%emt 0:04:49]} 15. a4 {[%emt 0:14:08]} c5 {[%emt 0:05:11]} 16. bxc5 {[%emt 0:02:42]} Nxc5 {[%emt 0:01:18]} 17. Nb5 {[%emt 0:00:04]} Qc6 {[%emt 0:00:24]} 18. Bxc5 {[%emt 0:03:01]} Qxc5+ {[%emt 0:00:15]} 19. Qd4 {[%emt 0:00:05]} Qc6 {[%emt 0:06:42]} 20. Nd2 {[%emt 0:02:22]} Ba6 {[%emt 0:01:46]} 21. Rab1 {[%emt 0:25:02]} e6 {[%emt 0:11:16]} 22. c4 {[%emt 0:05:44]} Rfc8 {[%emt 0:01:16]} 23. cxd5 {[%emt 0:02:33]} Qxd5 {[%emt 0:03:02]} 24. Qxd5 {[%emt 0:00:48]} exd5 {[%emt 0:00:02]} 25. Nd6 {[%emt 0:01:00]} Rc3 {[%emt 0:04:01]} 26. Rbc1 {[%emt 0:12:41]} Rxc1 {[%emt 0:01:36]} 27. Rxc1 {[%emt 0:00:05]} g5 {[%emt 0:00:14]} 28. Rc5 {[%emt 0:01:44]} gxf4 {[%emt 0:01:51]} 29. Rxd5 {[%emt 0:00:05]} Be2 {[%emt 0:01:05]} 30. N2e4 {[%emt 0:02:20]} h6 {[%emt 0:03:29]} 31. Kf2 {[%emt 0:02:46]} Bg4 {[%emt 0:00:06]} 32. Nf6+ {[%emt 0:02:16]} Bxf6 {[%emt 0:00:06]} 33. exf6 {[%emt 0:00:02]} Rb8 {[%emt 0:01:54]} 34. Rb5 {[%emt 0:07:46]} Rd8 {[%emt 0:00:13]} 35. Rb6 {[%emt 0:00:09]} Bd1 {[%emt 0:01:00]} 36. Ra6 {[%emt 0:00:49]} Bxa4 {[%emt 0:00:39]} 37. Kf3 {[%emt 0:01:13]} Bb3 {[%emt 0:00:40]} 38. Kxf4 {[%emt 0:01:29]} Kh7 {[%emt 0:00:15]} 39. Nb7 {[%emt 0:00:57]} Rd2 {[%emt 0:01:12]} 40. Nxa5 {[%emt 0:00:16]} Be6 {[%emt 0:00:28]} 41. Nc6 {[%emt 0:31:59]} 1/2-1/2

[Event "WJCC U20 Open 2019"]
[Site "New Delhi"]
[Date "2019.10.21"]
[Round "7.4"]
[White "Haria, Ravi"]
[Black "Santos Ruiz, Miguel"]
[Result "0-1"]
[ECO "B31"]
[WhiteElo "2463"]
[BlackElo "2560"]
[Annotator "ChessBase"]
[PlyCount "58"]
[EventDate "2019.10.15"]
[EventType "swiss"]
[EventCountry "IND"]
[SourceTitle "playchess.com"]
[Source "ChessBase"]
[SourceQuality "1"]
[TimeControl "40/5400+30:1800+30"]

1. e4 {[%emt 0:01:31]} c5 {[%emt 0:00:00]} 2. Nf3 {[%emt 0:00:15]} Nc6 {[%emt 0:00:00]} 3. Bb5 {[%emt 0:01:17]} g6 {[%emt 0:00:40]} 4. O-O {[%emt 0:00:21]} Bg7 {[%emt 0:00:07]} 5. c3 {[%emt 0:02:49]} e5 {[%emt 0:00:34]} 6. d4 {[%emt 0:01:45]} cxd4 {[%emt 0:01:03]} 7. cxd4 {[%emt 0:00:07]} exd4 {[%emt 0:00:03]} 8. Bf4 {[%emt 0:03:43]} a6 {[%emt 0:00:20]} 9. Bc4 {[%emt 0:04:51]} d6 {[%emt 0:01:08]} 10. Nbd2 {[%emt 0:06:25]} Nf6 {[%emt 0:10:41]} 11. Re1 {[%emt 0:24:47]} O-O {[%emt 0:01:36]} 12. Bb3 {[%emt 0:13:16]} h6 {[%emt 0:32:37]} 13. h3 {[%emt 0:11:19]} Re8 {[%emt 0:01:50]} 14. Rc1 {[%emt 0:02:03]} d5 {[%emt 0:10:18]} 15. exd5 {[%emt 0:09:53]} Rxe1+ {[%emt 0:00:17]} 16. Qxe1 {[%emt 0:00:34]} Nxd5 {[%emt 0:03:33]} 17. Bxd5 {[%emt 0:02:28]} Qxd5 {[%emt 0:00:03]} 18. Qe8+ {[%emt 0:00:19]} Kh7 {[%emt 0:00:09]} 19. Ne4 {[%emt 0:01:42]} Bxh3 {[%emt 0:09:29]} 20. Qxa8 {[%emt 0:00:41]} Qxe4 {[%emt 0:00:32]} 21. Qxb7 {[%emt 0:01:56]} Qxf4 {[%emt 0:01:18]} 22. Qxc6 {[%emt 0:00:08]} Be6 {[%emt 0:03:23]} 23. b3 {[%emt 0:04:26]} Bd5 {[%emt 0:02:01]} 24. Qc7 {[%emt 0:00:35]} Qg4 {[%emt 0:01:38]} 25. Qg3 {[%emt 0:00:44]} Qf5 {[%emt 0:00:10]} 26. Nh4 {[%emt 0:03:36]} Qe4 {[%emt 0:03:58]} 27. Nf3 {[%emt 0:00:23]} d3 {[%emt 0:04:34]} 28. Re1 {[%emt 0:00:19]} Qxe1+ {[%emt 0:00:06]} 29. Nxe1 {[%emt 0:00:10]} d2 {[%emt 0:00:02]} 0-1

[Event "WJCC U20 Open 2019"]
[Site "New Delhi"]
[Date "2019.10.21"]
[Round "7.6"]
[White "Drygalov, Sergey"]
[Black "Kollars, Dmitrij"]
[Result "1/2-1/2"]
[ECO "E15"]
[WhiteElo "2470"]
[BlackElo "2587"]
[Annotator "ChessBase"]
[PlyCount "103"]
[EventDate "2019.10.15"]
[EventType "swiss"]
[EventCountry "IND"]
[SourceTitle "playchess.com"]
[Source "ChessBase"]
[SourceQuality "1"]
[TimeControl "40/5400+30:1800+30"]

1. d4 {[%emt 0:00:00]} Nf6 {[%emt 0:00:14]} 2. c4 {[%emt 0:00:00]} e6 {[%emt 0:00:10]} 3. Nf3 {[%emt 0:00:00]} b6 {[%emt 0:00:18]} 4. g3 {[%emt 0:01:19]} Ba6 {[%emt 0:00:10]} 5. b3 {[%emt 0:00:57]} Bb4+ {[%emt 0:00:25]} 6. Bd2 {[%emt 0:00:08]} Be7 {[%emt 0:00:08]} 7. Nc3 {[%emt 0:02:16]} d5 {[%emt 0:00:28]} 8. cxd5 {[%emt 0:00:06]} exd5 {[%emt 0:00:08]} 9. Bg2 {[%emt 0:00:04]} O-O {[%emt 0:00:28]} 10. O-O {[%emt 0:00:05]} Re8 {[%emt 0:00:28]} 11. Re1 {[%emt 0:02:42]} Nbd7 {[%emt 0:02:32]} 12. Ne5 {[%emt 0:10:04]} Bb7 {[%emt 0:01:12]} 13. Rc1 {[%emt 0:07:04]} c5 {[%emt 0:17:04]} 14. e3 {[%emt 0:08:09]} Rc8 {[%emt 0:13:09]} 15. Bh3 {[%emt 0:03:02]} Rb8 {[%emt 0:11:37]} 16. Nxd7 {[%emt 0:06:14]} Nxd7 {[%emt 0:00:05]} 17. Ne2 {[%emt 0:00:09]} Nf6 {[%emt 0:02:26]} 18. Bg2 {[%emt 0:08:44]} Qd7 {[%emt 0:04:51]} 19. dxc5 {[%emt 0:16:00]} Bxc5 {[%emt 0:03:42]} 20. b4 {[%emt 0:04:51]} Bd6 {[%emt 0:01:59]} 21. Nd4 {[%emt 0:03:10]} Ne4 {[%emt 0:01:08]} 22. b5 {[%emt 0:04:51]} Bc5 {[%emt 0:03:57]} 23. a4 {[%emt 0:04:59]} a6 {[%emt 0:01:48]} 24. Rb1 {[%emt 0:03:27]} Rbc8 {[%emt 0:07:44]} 25. Re2 {[%emt 0:05:48]} axb5 {[%emt 0:01:52]} 26. axb5 {[%emt 0:00:23]} Nd6 {[%emt 0:03:19]} 27. Be1 {[%emt 0:01:16]} Bxd4 {[%emt 0:02:58]} 28. Qxd4 {[%emt 0:01:59]} Rc5 {[%emt 0:00:18]} 29. Reb2 {[%emt 0:02:22]} Nxb5 {[%emt 0:02:30]} 30. Qd3 {[%emt 0:00:04]} Bc6 {[%emt 0:02:11]} 31. Bf1 {[%emt 0:01:51]} d4 {[%emt 0:05:54]} 32. Rxb5 {[%emt 0:00:12]} Bxb5 {[%emt 0:00:30]} 33. Rxb5 {[%emt 0:00:06]} Qxb5 {[%emt 0:00:31]} 34. Qxb5 {[%emt 0:00:05]} Rxb5 {[%emt 0:00:02]} 35. Bxb5 {[%emt 0:00:05]} Re5 {[%emt 0:00:04]} 36. Be2 {[%emt 0:01:49]} dxe3 {[%emt 0:00:07]} 37. f4 {[%emt 0:00:04]} Rc5 {[%emt 0:01:16]} 38. Kg2 {[%emt 0:00:15]} Rc1 {[%emt 0:01:14]} 39. Bb4 {[%emt 0:00:07]} Rb1 {[%emt 0:00:40]} 40. Bd6 {[%emt 0:02:35]} b5 {[%emt 0:01:07]} 41. Kf3 {[%emt 0:31:30]} b4 {[%emt 0:32:44]} 42. Kxe3 {[%emt 0:00:00]} b3 {[%emt 0:00:00]} 43. Be5 {[%emt 0:00:00]} b2 {[%emt 0:00:00]} 44. Bc3 {[%emt 0:00:00]} h5 {[%emt 0:00:00]} 45. Bd3 {[%emt 0:00:00]} Rh1 {[%emt 0:00:00]} 46. Bxb2 {[%emt 0:00:00]} Rxh2 {[%emt 0:00:00]} 47. Be5 {[%emt 0:00:00]} h4 {[%emt 0:00:00]} 48. gxh4 {[%emt 0:00:00]} Rxh4 {[%emt 0:00:00]} 49. Bc4 {[%emt 0:00:00]} g5 {[%emt 0:00:00]} 50. Be2 {[%emt 0:00:00]} Rxf4 {[%emt 0:00:00]} 51. Bxf4 {[%emt 0:00:00]} gxf4+ {[%emt 0:00:00]} 52. Ke4 1/2-1/2

[Event "WJCC U20 Open 2019"]
[Site "New Delhi"]
[Date "2019.10.21"]
[Round "7.7"]
[White "Albornoz Cabrera, Carlos Daniel"]
[Black "Bronstein, Or"]
[Result "0-1"]
[ECO "B51"]
[WhiteElo "2581"]
[BlackElo "2413"]
[Annotator "ChessBase"]
[PlyCount "74"]
[EventDate "2019.10.15"]
[EventType "swiss"]
[EventCountry "IND"]
[SourceTitle "playchess.com"]
[Source "ChessBase"]
[SourceQuality "1"]
[TimeControl "40/5400+30:1800+30"]

1. e4 {[%emt 0:00:00]} c5 {[%emt 0:00:00]} 2. Nf3 {[%emt 0:00:00]} d6 {[%emt 0:00:00]} 3. Bb5+ {[%emt 0:00:00]} Nd7 {[%emt 0:00:00]} 4. O-O {[%emt 0:00:00]} a6 {[%emt 0:00:00]} 5. Bd3 {[%emt 0:00:00]} Ngf6 {[%emt 0:00:00]} 6. Re1 {[%emt 0:00:09]} e6 {[%emt 0:04:23]} 7. c3 {[%emt 0:00:20]} b5 {[%emt 0:01:37]} 8. Bc2 {[%emt 0:00:05]} c4 {[%emt 0:00:07]} 9. a4 {[%emt 0:00:04]} Bb7 {[%emt 0:00:34]} 10. d4 {[%emt 0:00:11]} cxd3 {[%emt 0:00:16]} 11. Qxd3 {[%emt 0:00:05]} Nc5 {[%emt 0:04:52]} 12. Qe2 {[%emt 0:00:07]} bxa4 {[%emt 0:00:14]} 13. Be3 {[%emt 0:00:08]} Nfxe4 {[%emt 0:23:55]} 14. Nbd2 {[%emt 0:00:28]} Nxd2 {[%emt 0:05:35]} 15. Nxd2 {[%emt 0:00:08]} Bc6 {[%emt 0:10:43]} 16. Bxc5 {[%emt 0:12:09]} dxc5 {[%emt 0:00:26]} 17. Nc4 {[%emt 0:18:42]} Bb5 {[%emt 0:03:06]} 18. Rad1 {[%emt 0:04:48]} Qc8 {[%emt 0:11:30]} 19. Qe4 {[%emt 0:06:01]} Ra7 {[%emt 0:05:47]} 20. Qg4 {[%emt 0:14:46]} g6 {[%emt 0:04:55]} 21. Nb6 {[%emt 0:24:16]} Qb8 {[%emt 0:04:40]} 22. Nd5 {[%emt 0:00:12]} Bg7 {[%emt 0:03:36]} 23. Qh4 {[%emt 0:01:13]} Qd8 {[%emt 0:04:21]} 24. Qg3 {[%emt 0:04:57]} O-O {[%emt 0:00:29]} 25. Nf4 {[%emt 0:00:03]} Qb8 {[%emt 0:00:36]} 26. Qg4 {[%emt 0:00:56]} Rd7 {[%emt 0:03:35]} 27. h4 {[%emt 0:00:45]} Rxd1 {[%emt 0:01:11]} 28. Rxd1 {[%emt 0:00:05]} Rd8 {[%emt 0:00:30]} 29. Rxd8+ {[%emt 0:01:42]} Qxd8 {[%emt 0:00:01]} 30. h5 {[%emt 0:00:01]} Qd2 {[%emt 0:04:38]} 31. hxg6 {[%emt 0:00:24]} hxg6 {[%emt 0:00:02]} 32. Bxg6 {[%emt 0:02:05]} Qe1+ {[%emt 0:00:01]} 33. Kh2 {[%emt 0:00:06]} fxg6 {[%emt 0:00:04]} 34. Nxg6 {[%emt 0:00:09]} Bd3 {[%emt 0:02:56]} 35. Nf4 {[%emt 0:00:20]} Bf5 {[%emt 0:00:23]} 36. Qh5 {[%emt 0:00:04]} Qxf2 {[%emt 0:01:42]} 37. Qg5 {[%emt 0:00:18]} Qd2 {[%emt 0:00:38]} 0-1

[Event "WJCC U20 Open 2019"]
[Site "New Delhi"]
[Date "2019.10.21"]
[Round "7.8"]
[White "Sammed Jaykumar, Shete"]
[Black "Sargsyan, Shant"]
[Result "0-1"]
[ECO "C55"]
[WhiteElo "2392"]
[BlackElo "2580"]
[Annotator "ChessBase"]
[PlyCount "64"]
[EventDate "2019.10.15"]
[EventType "swiss"]
[EventCountry "IND"]
[SourceTitle "playchess.com"]
[Source "ChessBase"]
[SourceQuality "1"]
[TimeControl "40/5400+30:1800+30"]

1. e4 {[%emt 0:00:00]} e5 {[%emt 0:03:42]} 2. Nf3 {[%emt 0:00:00]} Nc6 {[%emt 0:00:06]} 3. Bc4 {[%emt 0:00:00]} Nf6 {[%emt 0:00:24]} 4. d3 {[%emt 0:00:06]} h6 {[%emt 0:00:22]} 5. O-O {[%emt 0:01:41]} d6 {[%emt 0:01:49]} 6. c3 {[%emt 0:00:12]} g5 {[%emt 0:00:21]} 7. Re1 {[%emt 0:04:12]} Bg7 {[%emt 0:00:30]} 8. d4 {[%emt 0:01:42]} g4 {[%emt 0:01:27]} 9. dxe5 {[%emt 0:03:13]} Nd7 {[%emt 0:01:55]} 10. Nd4 {[%emt 0:11:24]} Ndxe5 {[%emt 0:00:31]} 11. Bf1 {[%emt 0:02:06]} Bd7 {[%emt 0:05:12]} 12. Na3 {[%emt 0:01:59]} h5 {[%emt 0:02:20]} 13. Nac2 {[%emt 0:12:55]} h4 {[%emt 0:03:17]} 14. Ne3 {[%emt 0:05:37]} h3 {[%emt 0:03:28]} 15. Nef5 {[%emt 0:06:16]} Qf6 {[%emt 0:04:28]} 16. Bf4 {[%emt 0:03:26]} hxg2 {[%emt 0:01:10]} 17. Bxg2 {[%emt 0:02:21]} O-O-O {[%emt 0:03:22]} 18. Bg3 {[%emt 0:09:20]} Rh7 {[%emt 0:07:10]} 19. f4 {[%emt 0:02:55]} gxf3 {[%emt 0:00:59]} 20. Nxf3 {[%emt 0:00:09]} Rg8 {[%emt 0:06:54]} 21. N3d4 {[%emt 0:03:48]} Bh6 {[%emt 0:05:43]} 22. Rf1 {[%emt 0:03:36]} Kb8 {[%emt 0:02:53]} 23. Qe2 {[%emt 0:03:30]} Ng4 {[%emt 0:02:53]} 24. Nc2 {[%emt 0:09:12]} Qh8 {[%emt 0:02:17]} 25. Rad1 {[%emt 0:11:28]} Bf8 {[%emt 0:10:00]} 26. h3 {[%emt 0:00:11]} Nh6 {[%emt 0:04:15]} 27. Nce3 {[%emt 0:01:25]} Nxf5 {[%emt 0:01:37]} 28. Nxf5 {[%emt 0:00:05]} Rxh3 {[%emt 0:01:01]} 29. Kf2 {[%emt 0:01:03]} Rhxg3 {[%emt 0:02:13]} 30. Nxg3 {[%emt 0:00:07]} Bg4 {[%emt 0:01:09]} 31. Qd2 {[%emt 0:00:38]} Bxd1 {[%emt 0:00:22]} 32. Rxd1 {[%emt 0:00:36]} Qh4 {[%emt 0:00:03]} 0-1

[Event "WJCC U20 Open 2019"]
[Site "New Delhi"]
[Date "2019.10.21"]
[Round "7.9"]
[White "Raghunandan, Kaumandur Srihari"]
[Black "Gazik, Viktor"]
[Result "0-1"]
[ECO "A88"]
[WhiteElo "2449"]
[BlackElo "2546"]
[Annotator "ChessBase"]
[PlyCount "64"]
[EventDate "2019.10.15"]
[EventType "swiss"]
[EventCountry "IND"]
[SourceTitle "playchess.com"]
[Source "ChessBase"]
[SourceQuality "1"]
[TimeControl "40/5400+30:1800+30"]

1. d4 {[%emt 0:00:00]} f5 {[%emt 0:00:00]} 2. c4 {[%emt 0:00:17]} Nf6 {[%emt 0:00:00]} 3. Nc3 {[%emt 0:00:07]} g6 {[%emt 0:00:00]} 4. g3 {[%emt 0:05:48]} Bg7 {[%emt 0:00:34]} 5. Bg2 {[%emt 0:00:07]} O-O {[%emt 0:01:12]} 6. Nf3 {[%emt 0:00:04]} d6 {[%emt 0:02:26]} 7. O-O {[%emt 0:00:07]} c6 {[%emt 0:01:17]} 8. b3 {[%emt 0:03:01]} Na6 {[%emt 0:09:25]} 9. Bb2 {[%emt 0:01:03]} Qe8 {[%emt 0:02:25]} 10. Ba3 {[%emt 0:14:03]} b5 {[%emt 0:11:30]} 11. cxb5 {[%emt 0:08:00]} cxb5 {[%emt 0:00:27]} 12. Ne5 {[%emt 0:23:30]} b4 {[%emt 0:35:36]} 13. Bxa8 {[%emt 0:02:31]} dxe5 {[%emt 0:00:14]} 14. dxe5 {[%emt 0:00:28]} Ng4 {[%emt 0:04:11]} 15. Bb2 {[%emt 0:01:15]} bxc3 {[%emt 0:02:35]} 16. Bxc3 {[%emt 0:00:09]} f4 {[%emt 0:08:00]} 17. Qd5+ {[%emt 0:24:45]} e6 {[%emt 0:05:50]} 18. Qd6 {[%emt 0:00:44]} fxg3 {[%emt 0:04:17]} 19. hxg3 {[%emt 0:00:15]} g5 {[%emt 0:00:46]} 20. Bf3 {[%emt 0:00:22]} Qh5 {[%emt 0:01:06]} 21. Bxg4 {[%emt 0:00:06]} Qxg4 {[%emt 0:00:03]} 22. Rae1 {[%emt 0:10:44]} Bb7 {[%emt 0:01:41]} 23. e4 {[%emt 0:00:11]} h5 {[%emt 0:01:57]} 24. Re3 {[%emt 0:02:18]} Rf7 {[%emt 0:03:19]} 25. Qd1 {[%emt 0:00:47]} Qh3 {[%emt 0:00:01]} 26. Qd8+ {[%emt 0:00:44]} Kh7 {[%emt 0:00:06]} 27. Rd1 {[%emt 0:00:47]} Nc5 {[%emt 0:00:34]} 28. Qd4 {[%emt 0:00:34]} Nxe4 {[%emt 0:01:57]} 29. Rxe4 {[%emt 0:00:23]} Rd7 {[%emt 0:00:09]} 30. Qxd7 {[%emt 0:00:08]} Bxe4 {[%emt 0:00:04]} 31. f3 {[%emt 0:00:06]} Qxg3+ {[%emt 0:00:11]} 32. Kf1 {[%emt 0:00:05]} Qxf3+ {[%emt 0:00:10]} 0-1

[Event "WJCC U20 Open 2019"]
[Site "New Delhi"]
[Date "2019.10.21"]
[Round "7.10"]
[White "Anuj Shrivatri"]
[Black "Visakh N R"]
[Result "0-1"]
[ECO "E10"]
[WhiteElo "2390"]
[BlackElo "2529"]
[Annotator "ChessBase"]
[PlyCount "76"]
[EventDate "2019.10.15"]
[EventType "swiss"]
[EventCountry "IND"]
[SourceTitle "playchess.com"]
[Source "ChessBase"]
[SourceQuality "1"]
[TimeControl "40/5400+30:1800+30"]

1. d4 {[%emt 0:00:00]} Nf6 {[%emt 0:00:00]} 2. c4 {[%emt 0:00:01]} e6 {[%emt 0:01:06]} 3. Nf3 {[%emt 0:00:08]} d5 {[%emt 0:01:02]} 4. g3 {[%emt 0:00:14]} Bb4+ {[%emt 0:08:05]} 5. Bd2 {[%emt 0:00:28]} Be7 {[%emt 0:00:08]} 6. Bg2 {[%emt 0:00:06]} O-O {[%emt 0:00:07]} 7. O-O {[%emt 0:00:08]} c6 {[%emt 0:00:03]} 8. Qc2 {[%emt 0:00:05]} Nbd7 {[%emt 0:00:27]} 9. Rd1 {[%emt 0:00:13]} Ne4 {[%emt 0:00:29]} 10. Be1 {[%emt 0:04:47]} Bd6 {[%emt 0:04:58]} 11. Nbd2 {[%emt 0:05:46]} f5 {[%emt 0:02:06]} 12. b4 {[%emt 0:05:58]} g5 {[%emt 0:06:11]} 13. c5 {[%emt 0:13:49]} Be7 {[%emt 0:02:53]} 14. Nb3 {[%emt 0:07:12]} Bf6 {[%emt 0:05:54]} 15. e3 {[%emt 0:10:57]} g4 {[%emt 0:05:29]} 16. Nfd2 {[%emt 0:02:06]} Ng5 {[%emt 0:03:18]} 17. f4 {[%emt 0:14:28]} gxf3 {[%emt 0:01:26]} 18. Nxf3 {[%emt 0:00:14]} Nxf3+ {[%emt 0:09:59]} 19. Bxf3 {[%emt 0:00:02]} e5 {[%emt 0:00:09]} 20. Qg2 {[%emt 0:07:40]} e4 {[%emt 0:04:47]} 21. Be2 {[%emt 0:00:11]} Bg5 {[%emt 0:00:05]} 22. Bd2 {[%emt 0:06:55]} Nf6 {[%emt 0:00:34]} 23. Rf1 {[%emt 0:03:05]} Be6 {[%emt 0:09:45]} 24. h3 {[%emt 0:03:54]} Kh8 {[%emt 0:01:30]} 25. Kh1 {[%emt 0:00:16]} Rg8 {[%emt 0:00:08]} 26. Qf2 {[%emt 0:02:52]} Qf8 {[%emt 0:03:55]} 27. h4 {[%emt 0:04:12]} Qh6 {[%emt 0:11:12]} 28. Na5 {[%emt 0:01:44]} Rg7 {[%emt 0:02:55]} 29. Rg1 {[%emt 0:00:43]} Rag8 {[%emt 0:02:07]} 30. b5 {[%emt 0:01:03]} cxb5 {[%emt 0:02:42]} 31. c6 {[%emt 0:00:09]} bxc6 {[%emt 0:00:04]} 32. Nxc6 {[%emt 0:00:15]} Nh5 {[%emt 0:01:09]} 33. Bxh5 {[%emt 0:01:14]} Qxh5 {[%emt 0:00:01]} 34. Ne5 {[%emt 0:04:15]} f4 {[%emt 0:01:40]} 35. exf4 {[%emt 0:00:55]} Bf6 {[%emt 0:00:06]} 36. Be3 {[%emt 0:01:04]} Rxg3 {[%emt 0:02:19]} 37. Rxg3 {[%emt 0:00:21]} Qxh4+ {[%emt 0:00:03]} 38. Kg2 {[%emt 0:00:54]} Qh3+ {[%emt 0:00:12]} 0-1

[Event "WJCC U20 Open 2019"]
[Site "New Delhi"]
[Date "2019.10.21"]
[Round "7.12"]
[White "Harsha Bharathakoti"]
[Black "Wang, Shixu B"]
[Result "0-1"]
[ECO "D37"]
[WhiteElo "2530"]
[BlackElo "2370"]
[Annotator "ChessBase"]
[PlyCount "88"]
[EventDate "2019.10.15"]
[EventType "swiss"]
[EventCountry "IND"]
[SourceTitle "playchess.com"]
[Source "ChessBase"]
[SourceQuality "1"]
[TimeControl "40/5400+30:1800+30"]

1. d4 {[%emt 0:00:00]} Nf6 {[%emt 0:00:00]} 2. c4 {[%emt 0:00:00]} e6 {[%emt 0:00:00]} 3. Nf3 {[%emt 0:00:28]} d5 {[%emt 0:00:12]} 4. Nc3 {[%emt 0:00:18]} Be7 {[%emt 0:00:14]} 5. Bf4 {[%emt 0:00:23]} O-O {[%emt 0:00:22]} 6. a3 {[%emt 0:00:28]} b6 {[%emt 0:01:08]} 7. Qc2 {[%emt 0:00:13]} c5 {[%emt 0:04:14]} 8. Rd1 {[%emt 0:00:42]} Bb7 {[%emt 0:04:58]} 9. cxd5 {[%emt 0:00:29]} exd5 {[%emt 0:08:19]} 10. g3 {[%emt 0:00:26]} Ne4 {[%emt 0:16:07]} 11. Bg2 {[%emt 0:07:46]} Qc8 {[%emt 0:00:58]} 12. O-O {[%emt 0:04:22]} Nd7 {[%emt 0:05:20]} 13. Bh3 {[%emt 0:42:24]} Nxc3 {[%emt 0:08:22]} 14. bxc3 {[%emt 0:04:24]} Qe8 {[%emt 0:02:44]} 15. a4 {[%emt 0:10:58]} Nf6 {[%emt 0:01:38]} 16. Ne5 {[%emt 0:00:48]} Rd8 {[%emt 0:02:38]} 17. Ra1 {[%emt 0:08:00]} Ne4 {[%emt 0:03:29]} 18. a5 {[%emt 0:03:21]} b5 {[%emt 0:01:28]} 19. a6 {[%emt 0:01:15]} Bc8 {[%emt 0:01:03]} 20. Bg2 {[%emt 0:00:10]} f6 {[%emt 0:07:29]} 21. Nf3 {[%emt 0:00:44]} g5 {[%emt 0:01:56]} 22. Bc7 {[%emt 0:03:41]} Rd7 {[%emt 0:02:52]} 23. Ba5 {[%emt 0:00:04]} c4 {[%emt 0:01:37]} 24. Rfb1 {[%emt 0:02:30]} Rd6 {[%emt 0:03:22]} 25. Nd2 {[%emt 0:00:54]} f5 {[%emt 0:03:20]} 26. Nf1 {[%emt 0:04:13]} Rh6 {[%emt 0:04:24]} 27. f3 {[%emt 0:01:32]} Nd6 {[%emt 0:04:27]} 28. Bb4 {[%emt 0:01:17]} Re6 {[%emt 0:00:37]} 29. Bc5 {[%emt 0:00:38]} Qd7 {[%emt 0:03:55]} 30. Qb2 {[%emt 0:00:32]} Re8 {[%emt 0:00:11]} 31. e3 {[%emt 0:00:28]} Bd8 {[%emt 0:00:58]} 32. f4 {[%emt 0:01:51]} Ne4 {[%emt 0:00:27]} 33. Qxb5 {[%emt 0:00:02]} Qxb5 {[%emt 0:01:46]} 34. Rxb5 {[%emt 0:00:01]} Nxc3 {[%emt 0:02:13]} 35. Rb8 {[%emt 0:00:55]} Rxa6 {[%emt 0:00:49]} 36. Rxa6 {[%emt 0:01:06]} Bxa6 {[%emt 0:00:02]} 37. Kf2 {[%emt 0:00:35]} Ne4+ {[%emt 0:02:52]} 38. Bxe4 {[%emt 0:00:08]} fxe4 {[%emt 0:00:12]} 39. Ra8 {[%emt 0:00:53]} c3 {[%emt 0:01:10]} 40. Rxa7 {[%emt 0:00:10]} c2 {[%emt 0:00:50]} 41. Ba3 {[%emt 0:30:01]} Bd3 {[%emt 0:04:51]} 42. Ra8 {[%emt 0:00:00]} Kf7 {[%emt 0:03:05]} 43. fxg5 {[%emt 0:00:00]} Be7 {[%emt 0:01:44]} 44. Ra7 {[%emt 0:00:00]} Ke6 {[%emt 0:00:17]} 0-1

[Event "WJCC U20 Open 2019"]
[Site "New Delhi"]
[Date "2019.10.21"]
[Round "7.14"]
[White "Arjun Kalyan"]
[Black "Sankalp Gupta"]
[Result "1/2-1/2"]
[ECO "B12"]
[WhiteElo "2483"]
[BlackElo "2369"]
[Annotator "ChessBase"]
[PlyCount "90"]
[EventDate "2019.10.15"]
[EventType "swiss"]
[EventCountry "IND"]
[SourceTitle "playchess.com"]
[Source "ChessBase"]
[SourceQuality "1"]
[TimeControl "40/5400+30:1800+30"]

1. e4 {[%emt 0:00:00]} c6 {[%emt 0:00:00]} 2. d4 {[%emt 0:00:08]} d5 {[%emt 0:00:00]} 3. e5 {[%emt 0:01:07]} c5 {[%emt 0:01:53]} 4. dxc5 {[%emt 0:00:38]} e6 {[%emt 0:00:04]} 5. Nf3 {[%emt 0:00:54]} Bxc5 {[%emt 0:00:07]} 6. Bd3 {[%emt 0:00:37]} Ne7 {[%emt 0:00:06]} 7. O-O {[%emt 0:01:12]} Ng6 {[%emt 0:00:20]} 8. a3 {[%emt 0:00:50]} O-O {[%emt 0:11:25]} 9. Ng5 {[%emt 0:03:13]} Qc7 {[%emt 0:05:30]} 10. Qh5 {[%emt 0:00:35]} h6 {[%emt 0:00:03]} 11. Nf3 {[%emt 0:00:27]} Nc6 {[%emt 0:13:15]} 12. Re1 Nd4 {[%emt 0:04:18]} 13. Nxd4 {[%emt 0:02:31]} Bxd4 {[%emt 0:00:20]} 14. c3 {[%emt 0:00:09]} Bb6 {[%emt 0:02:53]} 15. a4 {[%emt 0:00:58]} a5 {[%emt 0:13:19]} 16. Na3 {[%emt 0:01:32]} Bd7 {[%emt 0:00:49]} 17. Nc2 {[%emt 0:10:29]} Be8 {[%emt 0:06:06]} 18. Nd4 {[%emt 0:15:01]} Qe7 {[%emt 0:06:23]} 19. Be3 {[%emt 0:06:19]} f5 {[%emt 0:05:11]} 20. Nxf5 {[%emt 0:13:27]} Rxf5 {[%emt 0:00:04]} 21. Bxf5 {[%emt 0:00:05]} Nf8 {[%emt 0:00:09]} 22. Qf3 {[%emt 0:00:53]} Bxe3 {[%emt 0:00:03]} 23. Rxe3 {[%emt 0:00:08]} exf5 {[%emt 0:00:04]} 24. e6 {[%emt 0:01:10]} Ng6 {[%emt 0:14:22]} 25. Qxf5 {[%emt 0:13:29]} Qd6 {[%emt 0:00:06]} 26. Rg3 {[%emt 0:12:15]} Ne7 {[%emt 0:00:27]} 27. Qg4 {[%emt 0:01:50]} Qe5 {[%emt 0:02:09]} 28. Re3 {[%emt 0:01:34]} Qf5 {[%emt 0:01:46]} 29. Qh4 {[%emt 0:01:59]} Qf6 {[%emt 0:03:36]} 30. Qxf6 {[%emt 0:02:19]} gxf6 {[%emt 0:00:02]} 31. g4 {[%emt 0:00:49]} Kg7 {[%emt 0:02:21]} 32. h3 {[%emt 0:02:09]} f5 {[%emt 0:01:56]} 33. f4 {[%emt 0:02:45]} Kf6 {[%emt 0:00:21]} 34. Kf2 {[%emt 0:00:35]} Ra6 {[%emt 0:03:15]} 35. b3 {[%emt 0:03:00]} Rb6 {[%emt 0:00:25]} 36. Ra3 {[%emt 0:00:45]} Bg6 {[%emt 0:03:58]} 37. Re5 {[%emt 0:01:21]} Rxe6 {[%emt 0:00:50]} 38. Rxe6+ {[%emt 0:00:19]} Kxe6 {[%emt 0:00:02]} 39. Ra2 {[%emt 0:00:42]} h5 {[%emt 0:00:58]} 40. gxh5 {[%emt 0:01:12]} Bxh5 {[%emt 0:00:02]} 41. Ke3 {[%emt 0:01:19]} Nc6 {[%emt 0:09:08]} 42. Ra1 {[%emt 0:10:33]} Kf6 {[%emt 0:04:14]} 43. Rb1 {[%emt 0:01:52]} Bf7 {[%emt 0:00:21]} 44. Kd3 {[%emt 0:00:30]} Bh5 {[%emt 0:01:25]} 45. Ke3 {[%emt 0:00:36]} Bf7 {[%emt 0:00:02] Ke4 Ke5+} 1/2-1/2